[Event "4NCL 2022-2023"]
[Site "Daventry"]
[Date "2023.01.14"]
[Round "3.28"]
[White "Venkatesan, Kavin"]
[Black "Adair, James R"]
[Result "1/2-1/2"]
[ECO "E20"]
[WhiteElo "2152"]
[BlackElo "2451"]
[Annotator "TA"]
[PlyCount "46"]
[EventDate "2022.10.20"]
[EventType "team-tourn"]
[EventCountry "ENG"]
[SourceTitle "playchess.com"]
[Source "ChessBase"]
[SourceQuality "1"]
[TimeControl "40/6000+30:2400+30"]

{[%evp 10,46,0,0,31,0,0,0,0,10,5,3,5,0,0,-1,0,0,18,15,28,0,0,0,0,0,0,-2,-8,-10,-5,-7,34,35,35,33,61,53,127]} 1. d4 {[%emt 0:00:10][%cal Bd2d4,Bd4d5][%mdl 32]} Nf6 {[%emt 0:01:25]} 2. c4 {[%emt 0:00:10]} e6 {[%emt 0:00:39]} 3. Nc3 {[%emt 0:00:14]} Bb4 {[%emt 0:00:30]} 4. f3 {[%emt 0:00:09]} c5 {[%emt 0:00:34]} 5. d5 {[%emt 0:03:08]} d6 {[%emt 0:00:21]} 6. e4 {[%emt 0:02:12]} b5 {[%emt 0:00:14] E20: Nimzo-Indian: 4 g3 and 4 f3.} 7. a3 {[%emt 0:01:31]} Ba5 {[%emt 0:00:15]} 8. Bd3 {[%emt 0:00:45]} O-O {[%emt 0:00:37] The position is equal.} 9. Nge2 {[%emt 0:04:06]} bxc4 {[%emt 0:01:01]} 10. Bxc4 {[%emt 0:00:18]} Ba6 {[%emt 0:00:22]} 11. Bxa6 {[%emt 0:00:36]} Nxa6 {[%emt 0:00:11]} 12. Bg5 {[%emt 0:01:48]} exd5 {[%emt 0:17:24] [#]} 13. exd5 $146 {[%emt 0:04:43]} ({Predecessor:} 13. O-O Nc7 14. exd5 Rb8 15. Qc2 h6 16. Bh4 g5 17. Bf2 Bxc3 18. Nxc3 Nfxd5 19. Nxd5 Nxd5 20. b4 cxb4 21. Qd2 Rb5 22. axb4 Nxb4 23. Rxa7 Qb8 24. f4 {½-½ Doren,D (2398)-Kevicky,M (2405) W-ch WS/SIM/B/01 email 2019}) 13... c4 {[%emt 1:23:27]} 14. Qd4 {[%emt 0:23:55]} Re8 {[%emt 0:00:00]} 15. Qxc4 {[%emt 0:13:01]} Bxc3+ $1 {[%emt 0:00:00]} 16. bxc3 {[%emt 0:02:32]} Qb6 {[%emt 0:00:00][%cal Oe8e2] [#] White must now prevent ...Rxe2+!} 17. Bxf6 {[%emt 0:15:05]} gxf6 {[%emt 0:00:00]} 18. Rd1 {[%emt 0:03:02]} Rac8 {[%emt 0:00:00]} 19. Qd4 {[%emt 0:04:19]} Qxd4 {[%emt 0:00:00]} 20. cxd4 {[%emt 0:03:47]} Rc3 {[%emt 0:00:00]} (20... Rc2 $5 21. Rd2 $8 Rc1+ 22. Rd1 Rc2 $11) 21. Kd2 {[%emt 0:05:24] White is slightly better.} Rxa3 {[%emt 0:00:00] [#] And now ...Ra2+ would win.} 22. Ra1 {[%emt 0:00:04] Inhibits Ra2+.} Rb3 {[%emt 0:00:00]} 23. Rhb1 {[%emt 0:03:17] Inhibits Rb2+.} Rb4 {[%emt 0:00:00] Weighted Error Value: White=0.03 (flawless) /Black=0.08 (flawless)} (23... Rxb1 $14 24. Rxb1 Rb8) 1/2-1/2

[Event "4NCL 2022-2023"]
[Site "Daventry"]
[Date "2023.01.14"]
[Round "3.29"]
[White "Wells, Peter K"]
[Black "Freeman, Gordon"]
[Result "1/2-1/2"]
[ECO "B38"]
[WhiteElo "2370"]
[BlackElo "2093"]
[Annotator "TA"]
[PlyCount "93"]
[EventDate "2022.10.20"]
[EventType "team-tourn"]
[EventCountry "ENG"]
[SourceTitle "playchess.com"]
[Source "ChessBase"]
[SourceQuality "1"]
[TimeControl "40/6000+30:2400+30"]

{[%evp 22,93,47,47,48,41,127,113,81,14,22,29,155,93,108,101,89,101,98,100,96,105,244,166,158,170,370,370,471,470,409,300,277,173,260,257,986,958,946,212,225,110,110,110,110,117,117,107,121,0,208,0,197,0,0,0,0,0,0,0,0,0,0,0,0,0,0,0,0,0,0,0,0,0]} 1. Nf3 {[%emt 0:00:47]} c5 {[%emt 0:02:31]} 2. c4 {[%emt 0:00:55]} Nf6 {[%emt 0:03:47]} 3. Nc3 {[%emt 0:01:05]} g6 {[%emt 0:02:55]} 4. d4 {[%emt 0:01:10]} cxd4 {[%emt 0:00:57]} 5. Nxd4 {[%emt 0:00:07]} Nc6 {[%emt 0:00:46]} 6. e4 {[%emt 0:00:40]} Bg7 {[%emt 0:07:46]} 7. Be3 {[%emt 0:05:40]} O-O {[%emt 0:00:47]} 8. Be2 {[%emt 0:02:49]} Nxd4 {[%emt 0:10:20]} 9. Bxd4 {[%emt 0:00:30]} b6 {[%emt 0:02:33]} 10. f4 {[%emt 0:31:27]} Bb7 {[%emt 0:02:17]} 11. Bf3 {[%emt 0:03:43]} d6 {[%emt 0:07:58]} 12. O-O {[%emt 0:01:48]} Rc8 {[%emt 0:05:48] B38: Sicilian: Maroczy Bind with 5...Bg7 and 7...0-0.} 13. b3 {[%emt 0:09:04]} Nd7 {[%emt 0:15:44]} (13... e5 $14 14. fxe5 dxe5) 14. Bxg7 $16 {[%emt 0:16:45]} Kxg7 {[%emt 0:00:09] [#] White is better.} 15. e5 {[%emt 0:01:49]} Bxf3 $11 {[%emt 0:10:02]} 16. Rxf3 {[%emt 0:00:14] [#]} Rc6 $146 {[%emt 0:12:25]} (16... dxe5 $11 17. Rd3 Rc7) ({Predecessor:} 16... b5 17. exd6 bxc4 18. Qd4+ Nf6 19. Ne4 cxb3 20. axb3 exd6 21. Rxa7 Rc1+ 22. Rf1 Rxf1+ 23. Kxf1 {0-1 Fontaine,R (2369)-Apicella,M (2515) FRA-chT France 1999 (3)}) 17. Nb5 {[%emt 0:05:59]} (17. Qd5 $142 Rc8 18. Rd1 (18. exd6 Nf6 $16)) 17... a6 $16 {[%emt 0:03:56]} (17... dxe5 $2 18. Rd3 $18 (18. Nxa7 Rd6 $11)) 18. Nd4 {[%emt 0:00:08]} Rc8 {[%emt 0:01:02]} 19. e6 {[%emt 0:01:57]} Nc5 {[%emt 0:00:48]} 20. f5 $36 {[%emt 0:04:19][%mdl 2048] Black must now prevent exf7. Keeping Black busy. White is more active.} fxe6 {[%emt 0:05:00]} 21. b4 {[%emt 0:01:55][%cal Bb3b4,Bb4c5,Bc5b6][%mdl 32]} (21. Nxe6+ $6 Nxe6 22. fxe6 Kg8 $11) (21. fxe6 $6 Kg8 $11) 21... e5 {[%emt 0:02:15]} (21... exf5 $16 22. bxc5 Rf6) 22. bxc5 $18 {[%emt 0:02:54] aiming for Ne6+.} exd4 {[%emt 0:00:22]} 23. Qxd4+ {[%emt 0:00:25]} Kg8 $2 {[%emt 0:03:16]} (23... Rf6) 24. cxb6 {[%emt 0:07:39]} Rxf5 {[%emt 0:00:46]} 25. Rxf5 {[%emt 0:00:34]} gxf5 {[%emt 0:00:10][%mdl 4096] Endgame KQR-KQR} 26. Rb1 {[%emt 0:00:46]} Rb8 {[%emt 0:00:55]} 27. Rb3 {[%emt 0:01:44]} e5 {[%emt 0:01:02]} (27... Kf7 {was necessary.} 28. Kf2 Qc8) 28. Qd5+ {[%emt 0:00:45]} Kh8 $2 {[%emt 0:00:19]} (28... Kf8 29. h3 f4) 29. c5 {[%emt 0:01:36]} (29. b7 Qc7 30. Qe6 f4 $16) 29... Qg5 {[%emt 0:03:18]} 30. Rc3 $2 {[%emt 0:03:48]} (30. cxd6 Qc1+ 31. Kf2 Qc2+ 32. Kf3 e4+ 33. Kg3) 30... Qh4 {[%emt 0:03:02][%cal Rh4e1]} 31. g3 {[%emt 0:01:16]} (31. cxd6 $2 Qe1#) (31. Rc1 $18 {has better winning chances.} Qf4 32. Re1 dxc5 33. Qxc5 (33. Rxe5 Qc1+ 34. Kf2 Qf4+ 35. Kg1 Qc1+ 36. Kf2 Qf4+ 37. Kg1 $11) 33... Qd4+ 34. Qxd4 exd4 35. Re6) 31... Qb4 $16 {[%emt 0:00:11]} 32. Qxd6 {[%emt 0:00:57]} Qxc3 {[%emt 0:00:33]} 33. Qxb8+ {[%emt 0:00:04] KQ-KQ} Kg7 {[%emt 0:00:07]} 34. Qc7+ {[%emt 0:00:22]} Kg6 {[%emt 0:02:21]} 35. Qd6+ {[%emt 0:01:08]} ({Better is} 35. Qc6+ $16 Kh5 36. Qe8+ Kg5 37. Qg8+ (37. Qe7+ Kg6 $16) 37... Kf6 38. Qd8+ (38. Qxh7 Qd4+ 39. Kf1 Qc4+ 40. Kg2 Qe4+ 41. Kf2 Qc2+ 42. Kf1 Qb1+ 43. Kg2 Qe4+ 44. Kg1 Qe1+ 45. Kg2 Qe4+ $11) (38. Qf8+ Kg6 $16) 38... Kg6 39. Qg8+ (39. Qd6+ Kf7 $16) 39... Kf6 40. Qf8+ (40. Qxh7 Qe1+ 41. Kg2 Qe4+ 42. Kf2 Qc2+ 43. Kf1 Qb1+ 44. Kf2 Qc2+ 45. Kg1 Qb1+ 46. Kg2 Qe4+ 47. Kh3 Qg4+ 48. Kg2 Qe2+ 49. Kg1 Qe3+ 50. Kf1 Qf3+ 51. Kg1 Qe3+ 52. Kf1 Qf3+ 53. Kg1 Qe3+ $11) 40... Kg6 41. Qg8+ Kf6) 35... Kf7 $2 {[%emt 0:01:03] [#]} (35... Kg7 $1 $11) 36. Qd7+ $2 {[%emt 0:00:42]} (36. Qd5+ $1 $18 Ke7 37. Qd6+ Kf7 38. Qd5+ Ke7 39. Kg2 Qb2+ 40. Kf1 Qc1+ 41. Kg2 Qc2+ 42. Kg1 Qc1+ 43. Kg2 Qb2+ 44. Kf3 Qc3+ 45. Ke2 Qc2+ 46. Kf3 Qc3+ 47. Kf2 Qb2+ 48. Kf3 Qc3+) 36... Kg6 $2 {[%emt 0:00:11] [#]} (36... Kf6 $1 $11 {and Black stays safe.}) 37. Qe6+ $2 {[%emt 0:00:46]} (37. Qc6+ $1 $18 Kh5 38. h3) 37... Kg5 $1 $11 {[%emt 0:00:57] The position is equal.} 38. Qg8+ {[%emt 0:00:31]} ({Resist} 38. Qe7+ $6 Kg6 $16) 38... Kh6 {[%emt 0:00:34]} 39. Qe6+ {[%emt 0:00:39]} Kg5 {[%emt 0:00:06]} 40. Qg8+ {[%emt 0:00:20]} ({Don't do} 40. Qe7+ $6 Kg6 $16) 40... Kh6 {[%emt 0:00:21]} 41. Kg2 {[%emt 0:03:44] Strongly threatening h4.} Qd2+ {[%emt 0:06:41]} 42. Kh3 {[%emt 0:04:33] Threatening mate with Qe6+.} Qe2 {[%emt 0:01:11]} 43. Qe6+ {[%emt 0:14:52]} Kg5 {[%emt 0:00:27][%cal Re2f1]} 44. Qe7+ {[%emt 0:00:18]} Kg6 {[%emt 0:02:20]} 45. Qe8+ {[%emt 0:04:12]} Kg5 {[%emt 0:00:49][%cal Re2f1]} 46. Qe7+ {[%emt 0:00:59]} Kg6 {[%emt 0:00:28]} 47. Qe6+ {[%emt 0:03:10] Black escapes into a draw.   Weighted Error Value: White=0.53/Black=0.41} 1/2-1/2

[Event "4NCL 2022-2023"]
[Site "Daventry"]
[Date "2023.01.14"]
[Round "3.30"]
[White "Bourached, Anthony"]
[Black "Urh, Zala"]
[Result "0-1"]
[ECO "D00"]
[WhiteElo "2049"]
[BlackElo "2282"]
[Annotator "TA"]
[PlyCount "40"]
[EventDate "2022.10.20"]
[EventType "team-tourn"]
[EventCountry "ENG"]
[SourceTitle "playchess.com"]
[Source "ChessBase"]
[SourceQuality "1"]
[TimeControl "40/6000+30:2400+30"]

{[%evp 9,40,-20,-25,-30,-25,-26,12,0,9,-20,-13,-23,-18,-42,-2,-11,0,-37,-31,-42,-38,-148,-163,-151,-158,-155,-153,-151,-157,-414,-389,-463,-470]} 1. d4 {[%emt 0:00:05]} Nf6 {[%emt 0:02:05]} 2. Nc3 {[%emt 0:00:32]} d5 {[%emt 0:00:59]} 3. Bf4 {[%emt 0:00:15]} a6 {[%emt 0:04:20]} 4. e3 {[%emt 0:00:16]} e6 {[%emt 0:01:24]} 5. Bd3 {[%emt 0:01:40]} c5 {[%emt 0:01:09]} 6. dxc5 {[%emt 0:00:39] D00: 1 d4 d5: Unusual lines.} Bxc5 {[%emt 0:01:13]} 7. Nf3 {[%emt 0:01:00]} Nc6 {[%emt 0:08:47]} 8. O-O {[%emt 0:03:00] The position is equal.} Bd6 {[%emt 0:10:31]} 9. Bg5 {[%emt 0:22:33]} h6 {[%emt 0:00:26]} 10. Bh4 {[%emt 0:01:22]} O-O {[%emt 0:01:26]} 11. Re1 {[%emt 0:25:03]} Be7 {[%emt 0:19:32]} (11... g5 $5 {[%cal Rg5h4]} 12. Bg3 Bxg3 13. hxg3 e5 $11) 12. a3 {[%emt 0:15:25]} b5 {[%emt 0:03:01]} 13. Nd4 {[%emt 0:08:58]} Bb7 {[%emt 0:06:31]} 14. Bg3 {[%emt 0:02:29]} Na5 {[%emt 0:03:05] [#]} 15. e4 $146 {[%emt 0:09:03]} (15. b4 $15 Nc4 16. Bxc4 dxc4 17. Be5) ({Predecessor:} 15. b3 b4 16. Nb1 bxa3 17. Nxa3 Nd7 18. Nb1 Qb6 19. Nc3 e5 20. Nf5 Bf6 21. e4 d4 22. Nd5 Bxd5 23. exd5 {1-0 Karttunen,M (2414)-Kosmo,S (2185) Heart of Finland op 14th 2004 (9)}) 15... dxe4 $17 {[%emt 0:04:30]} 16. Bxe4 {[%emt 0:01:37]} Nxe4 {[%emt 0:00:29]} 17. Nxe4 {[%emt 0:00:10]} Nc4 {[%emt 0:02:39]} 18. b3 {[%emt 0:01:10]} Nxa3 {[%emt 0:06:58]} 19. Be5 $2 {[%emt 0:00:26] [#]} (19. c3 $17 {was necessary.}) 19... Qd5 $1 $19 {[%emt 0:03:17]} 20. Rxa3 {[%emt 0:11:23][%cal Oe5g7] Threatens to win with Bxg7!} Qxe5 {[%emt 0:07:18] Weighted Error Value: White=0.48/Black=0.05 (flawless)} (20... Bxa3 $2 {is the wrong capture.} 21. Bf6 Kh8 22. c4 bxc4 23. bxc4 Qxc4 24. Qh5 $19) 0-1

[Event "4NCL 2022-2023"]
[Site "Daventry"]
[Date "2023.01.14"]
[Round "3.31"]
[White "Palliser, Richard J D"]
[Black "Carroll, Peter"]
[Result "1-0"]
[ECO "A09"]
[WhiteElo "2395"]
[BlackElo "2107"]
[Annotator "TA"]
[PlyCount "47"]
[EventDate "2022.10.20"]
[EventType "team-tourn"]
[EventCountry "ENG"]
[SourceTitle "playchess.com"]
[Source "ChessBase"]
[SourceQuality "1"]
[TimeControl "40/6000+30:2400+30"]

{[%evp 9,46,57,58,48,111,100,102,87,133,110,115,110,125,126,210,217,209,220,224,213,298,223,289,280,254,254,272,271,855,818,1256,1261,1179,1194,29978,2358,29998,29999,29999]} 1. Nf3 {[%emt 0:00:06]} d5 {[%emt 0:06:17]} 2. c4 {[%emt 0:01:52]} d4 {[%emt 0:01:10]} 3. b4 {[%emt 0:01:33]} g5 {[%emt 0:07:25]} 4. h3 {[%emt 0:01:46]} Bg7 {[%emt 0:00:21]} 5. Nxg5 {[%emt 0:02:30]} e5 {[%emt 0:02:55]} 6. d3 {[%emt 0:00:10] A09: Réti Opening: 1 Nf3 d5 2 c4.} h6 {[%emt 0:07:41] [#]} (6... Qe7 $14) 7. Nf3 $1 $16 {[%emt 0:00:52]} f5 {[%emt 0:01:29]} 8. Nbd2 {[%emt 0:02:50][%cal Og2g4] [#] White is better.} Ne7 $146 {[%emt 0:01:03]} ({Better is} 8... Qe7) ({Predecessor:} 8... Qe7 9. Nb3 Qxb4+ 10. Bd2 Qe7 11. g3 c5 12. Nh4 e4 13. Bf4 Kf7 14. e3 Nf6 {½-½ Matsenko,S (2534)-Baltag,I (2386) TUR-chT 1st League 2017 (6.9)}) 9. g3 {[%emt 0:01:36]} O-O {[%emt 0:00:35]} 10. Bg2 {[%emt 0:00:15]} Ng6 {[%emt 0:03:05]} 11. O-O {[%emt 0:09:12]} e4 {[%emt 0:10:01]} 12. dxe4 $18 {[%emt 0:02:43]} f4 {[%emt 0:01:24]} 13. Bb2 {[%emt 0:18:15]} fxg3 {[%emt 0:05:15]} 14. fxg3 {[%emt 0:00:06]} Qd6 {[%emt 0:01:54] [#]} 15. e5 $1 {[%emt 0:06:35]} Nxe5 {[%emt 0:04:16]} (15... Qxb4 16. Qc2) 16. Nxe5 {[%emt 0:02:21]} ({Don't play} 16. Nxd4 $6 Rxf1+ 17. Qxf1 Qxb4 $16) 16... Rxf1+ {[%emt 0:03:01]} 17. Nxf1 {[%emt 0:07:03]} ({Don't do} 17. Kxf1 $6 Qxe5 18. g4 Qf4+ 19. Nf3 c5 $16) 17... Bxe5 {[%emt 0:08:17]} 18. e3 {[%emt 0:00:42][%cal Be2e3,Be3d4][%mdl 32] Hoping for Qh5.} Qxb4 $2 {[%emt 0:04:56]} (18... Nc6 19. Qh5 Bd7) 19. Bd5+ {[%emt 0:02:18]} Kg7 {[%emt 0:00:55]} 20. Qh5 {[%emt 0:00:55] Qf7+ would kill now.} Qe7 {[%emt 0:00:20] Repels Qf7+} 21. exd4 {[%emt 0:00:24] Strongly threatening Bc1.} Bf6 {[%emt 0:00:35] [#]} 22. Re1 $3 {[%emt 0:00:06][%mdl 512]} Qxe1 {[%emt 0:01:53]} (22... Be6 23. Rxe6) 23. Qf7+ {[%emt 0:00:03]} Kh8 {[%emt 0:00:05]} 24. Qg8# {[%emt 0:01:38] Black did not feel at home in the position after the opening. A superb game by Palliser.   Weighted Error Value: White=0.12 (very precise) /Black=0.89} 1-0

[Event "4NCL 2022-2023"]
[Site "Daventry"]
[Date "2023.01.14"]
[Round "3.32"]
[White "Putar, Lara"]
[Black "Ashton, Adam G"]
[Result "0-1"]
[ECO "E05"]
[WhiteElo "1761"]
[BlackElo "2339"]
[Annotator "TA"]
[PlyCount "52"]
[EventDate "2022.10.20"]
[EventType "team-tourn"]
[EventCountry "ENG"]
[SourceTitle "playchess.com"]
[Source "ChessBase"]
[SourceQuality "1"]
[TimeControl "40/6000+30:2400+30"]

{[%evp 15,52,-41,-39,-42,-21,-20,-28,-21,-21,-31,-7,0,-17,-10,0,-22,-16,-70,-74,-166,-162,-172,-174,-338,-343,-590,-589,-651,-578,-560,-557,-679,-508,-523,-488,-603,-596,-718,-567]} 1. d4 {[%emt 0:00:03]} d5 {[%emt 0:00:45]} 2. c4 {[%emt 0:00:12]} e6 {[%emt 0:00:03]} 3. Nf3 {[%emt 0:00:20]} Nf6 {[%emt 0:00:30]} 4. g3 {[%emt 0:00:18]} Be7 {[%emt 0:02:20]} 5. Bg2 {[%emt 0:00:45]} O-O {[%emt 0:00:11]} 6. O-O {[%emt 0:01:19]} dxc4 {[%emt 0:00:08]} 7. Nc3 {[%emt 0:01:08]} Nc6 {[%emt 0:04:13][%cal Bb8c6,Bc6b4,Bb4d3][%mdl 32]} 8. e4 {[%emt 0:01:28]} Rb8 {[%emt 0:02:20] 8...a6 deserves study.} 9. d5 {[%emt 0:02:20] E05: Open Catalan: 5 Nf3 Be7.} Nb4 {[%emt 0:13:04][%cal Re6d5]} 10. Ne5 $1 {[%emt 0:02:05]} exd5 {[%emt 0:01:19] [#]} 11. Nxd5 $146 {[%emt 0:01:58] Black has an edge.} ({Predecessor:} 11. exd5 b5 12. a3 Bd6 13. Nxc4 bxc4 14. axb4 Rxb4 15. Rxa7 Bf5 16. Re1 h6 17. Qd4 {0-1 Strybuk,A (2215)-Tang,A (2538) Anti Cheating Blitz Cup 2020 (1)}) 11... Nfxd5 {[%emt 0:05:54]} 12. exd5 {[%emt 0:00:23]} Bf5 {[%emt 0:02:55]} 13. a3 {[%emt 0:13:33]} Nd3 {[%emt 0:03:42]} 14. Nxc4 {[%emt 0:02:44]} Bf6 {[%emt 0:12:53]} 15. Qb3 {[%emt 0:09:14]} Nc5 {[%emt 0:07:56]} 16. Qe3 {[%emt 0:05:51]} ({White should play} 16. Qb4 $11 Nd3 17. Qb3) 16... b6 $15 {[%emt 0:03:33] [#] ...Bd3 is the strong threat.} 17. Rd1 {[%emt 0:11:41] Inhibits Bd3.} (17. Ne5 $17 {is a better defense.}) 17... Re8 $36 {[%emt 0:01:15][%mdl 2048] Black is in control.} 18. Qf4 {[%emt 0:05:11]} Bc2 {[%emt 0:01:47][%cal Bf5c2,Bc2d3,Bd3e2,Be2c4][%mdl 32]} 19. Rf1 {[%emt 0:05:21]} (19. Qd2 {keeps fighting.} Ba4 20. Rb1) 19... Bd3 {[%emt 0:01:50]} 20. Rd1 {[%emt 0:19:44]} (20. Ne3 Nb3 21. Rd1) 20... g5 {[%emt 0:08:11] Black is clearly winning.} 21. Qg4 {[%emt 0:07:00] [#]} h5 $1 {[%emt 0:07:51][%mdl 576] Decoy} 22. Qxh5 {[%emt 0:03:48]} Be2 {[%emt 0:01:01]} 23. g4 {[%emt 0:04:43]} Bxc4 {[%emt 0:03:45]} 24. h4 {[%emt 0:02:18]} gxh4 {[%emt 0:02:17] And now ...Be2 would win.} 25. Bf4 {[%emt 0:04:08]} Nd3 {[%emt 0:04:42]} 26. Bh2 {[%emt 0:03:10]} Be5 {[%emt 0:00:45] Weighted Error Value: White=0.65/Black=0.24 (precise)} 0-1

[Event "4NCL 2022-2023"]
[Site "Daventry"]
[Date "2023.01.14"]
[Round "3.33"]
[White "Reimanis, Ritvars"]
[Black "Ansell, Simon T"]
[Result "0-1"]
[ECO "D11"]
[WhiteElo "2374"]
[BlackElo "2337"]
[Annotator "TA"]
[PlyCount "99"]
[EventDate "2022.10.20"]
[EventType "team-tourn"]
[EventCountry "ENG"]
[SourceTitle "playchess.com"]
[Source "ChessBase"]
[SourceQuality "1"]
[TimeControl "40/6000+30:2400+30"]

{[%evp 9,99,10,9,-13,-16,-16,-2,-6,0,-26,-19,-36,-30,-27,0,-87,-80,-97,-88,-97,-102,-114,-80,-138,-137,-162,-160,-159,-149,-258,-108,-108,-101,-101,-91,-87,-85,-118,-113,-111,-108,-105,-80,-96,-96,-123,-126,-117,-124,-118,-121,-161,-145,-253,-171,-196,-152,-286,-271,-496,-455,-506,-462,-368,-301,-292,-285,-251,6,-429,-391,-368,-300,-1662,-1179,-3162,-3018,-12836,-12833,-5908,-5006,-12835,-12835,-12842,-12843,-12843,-12843,-12844,-12844,-12845,-12845,-12848]} 1. d4 {[%emt 0:08:06]} d5 {[%emt 0:00:28]} 2. c4 {[%emt 0:01:55]} c6 {[%emt 0:00:10]} 3. e3 {[%emt 0:00:49]} Bf5 {[%emt 0:01:24]} 4. Nf3 {[%emt 0:01:45]} e6 {[%emt 0:03:12]} 5. Nc3 {[%emt 0:00:06]} Nd7 {[%emt 0:01:44]} 6. Bd2 {[%emt 0:18:11] D11: Slav Defence: 3 Nf3 sidelines and 3...Nf6 4 e3 Bg4.} h6 {[%emt 0:03:19]} 7. Be2 {[%emt 0:04:21]} Ngf6 {[%emt 0:00:16]} 8. O-O {[%emt 0:01:40] The position is equal.} Bd6 {[%emt 0:01:24]} 9. Qb3 {[%emt 0:07:23]} Rb8 {[%emt 0:06:57] [#]} 10. Be1 $146 {[%emt 0:09:30]} ({Predecessor:} 10. Rfc1 O-O 11. cxd5 {½-½ Fomichenko,E (2357)-Malaniuk,V (2513) Krasnodar 2005}) 10... O-O {[%emt 0:03:36]} 11. Nd2 {[%emt 0:01:52]} Qe7 {[%emt 0:04:45]} 12. Bf3 {[%emt 0:10:54] [#]} (12. f4 $11) 12... b5 $1 $17 {[%emt 0:02:57]} 13. cxd5 {[%emt 0:08:06]} (13. c5 Bc7) 13... cxd5 {[%emt 0:00:37]} 14. Be2 {[%emt 0:07:32]} a6 {[%emt 0:26:58]} 15. f3 {[%emt 0:01:59]} Rfc8 {[%emt 0:05:53] aiming for ...b4.} (15... e5 {seems wilder.} 16. Bh4 Qe6 17. e4 exd4 18. exf5 Qxf5 19. Nxb5 Qh5) 16. a3 {[%emt 0:00:25]} (16. e4 $142 b4 {[%mdl 64] Deflection} 17. Nd1 dxe4 18. Bxa6) 16... e5 {[%emt 0:03:23]} 17. Qd1 {[%emt 0:08:24]} (17. Nxd5 Nxd5 18. Qxd5 Nf6) 17... exd4 {[%emt 0:03:30]} 18. exd4 {[%emt 0:00:01] [#]} Nb6 $1 {[%emt 0:01:34][%cal Ob6a4] ...Na4! would be deadly.} 19. Bf2 {[%emt 0:03:38]} (19. Ra2 $17 {might work better.}) 19... Nc4 {[%emt 0:04:29]} (19... Na4 $19 {is more deadly.} 20. Nxa4 bxa4) 20. Nxc4 {[%emt 0:00:41]} bxc4 {[%emt 0:00:17]} 21. Qd2 {[%emt 0:00:33]} Qb7 {[%emt 0:01:02]} 22. Ra2 {[%emt 0:01:37]} Re8 {[%emt 0:08:38]} 23. Bd1 {[%emt 0:02:21]} Bd3 {[%emt 0:03:53] Black has more active pieces. The white rooks are badly placed.} 24. Re1 {[%emt 0:00:01]} Rxe1+ {[%emt 0:00:31]} 25. Bxe1 {[%emt 0:00:01] White is weak on the light squares} g5 {[%emt 0:02:00]} 26. g3 {[%emt 0:00:27] Repels Bf4} Qd7 {[%emt 0:00:53]} 27. Bc2 {[%emt 0:03:40]} Bxc2 {[%emt 0:01:53]} 28. Qxc2 {[%emt 0:00:02]} g4 {[%emt 0:04:35]} 29. fxg4 {[%emt 0:00:34]} Qxg4 {[%emt 0:00:11]} 30. Bf2 {[%emt 0:00:02]} h5 {[%emt 0:03:05][%cal Bh6h5,Bh5h4,Bh4g3][%mdl 32]} 31. Kg2 {[%emt 0:02:24]} (31. Qe2 $17) 31... Bc7 {[%emt 0:02:48] White must now prevent ...h4.} 32. h3 {[%emt 0:00:22]} Qg6 {[%emt 0:00:17]} 33. Qe2 {[%emt 0:01:11]} (33. Qxg6+ $17 fxg6 34. Na4) 33... Rb3 $19 {[%emt 0:04:09]} 34. Ra1 $2 {[%emt 0:01:53] [#]} (34. a4) 34... Bxg3 $1 {[%emt 0:01:44][%mdl 512]} 35. Rg1 {[%emt 0:02:59]} (35. Bxg3 Ne4 36. Nxe4 dxe4 $19) 35... h4 {[%emt 0:00:36] Strongly threatening ...Ne4.} 36. Bxg3 {[%emt 0:00:37][%cal Og2h2] And now Kh2! would win.} hxg3 {[%emt 0:00:14]} ({Weaker is} 36... Qxg3+ 37. Kh1 $18) 37. Rf1 {[%emt 0:00:48]} Kg7 {[%emt 0:03:14]} 38. Rf3 {[%emt 0:00:11]} Ne4 {[%emt 0:01:22]} (38... Nh5 $19 {Threatens to win with ...Qg5.} 39. Qd2 Kh7) 39. Nxe4 $4 {[%emt 0:02:23][%mdl 8192] White does not recover from this.} (39. Nxd5 $11 {and White has nothing to worry.} Rb5 40. Rf4 Rxd5 41. Rxe4 (41. Qxe4 Qxe4+ 42. Rxe4 Rb5 $11)) 39... Qxe4 {[%emt 0:00:49]} ({Worse is} 39... dxe4 40. Rxb3 cxb3 41. Qe3 $11) 40. Qxe4 {[%emt 0:00:12] Intending Qe5+ and mate.} Rxb2+ {[%emt 0:00:21]} (40... dxe4 41. Rxb3 cxb3 42. Kxg3 $18) 41. Kg1 $2 {[%emt 0:00:00]} (41. Kxg3 dxe4 42. Rf5) 41... dxe4 {[%emt 0:00:00] Black is clearly winning.} 42. Rxg3+ {[%emt 0:00:00][%mdl 4096] Endgame KR-KR} Kf6 {[%emt 0:00:00]} 43. Rc3 {[%emt 0:00:00]} Kf5 {[%emt 0:00:00]} 44. d5 {[%emt 0:00:00]} Ke5 {[%emt 0:00:00]} 45. Rxc4 {[%emt 0:00:00]} Kxd5 {[%emt 0:00:00]} 46. Ra4 {[%emt 0:00:00]} e3 {[%emt 0:00:00] ( -> ...Rb1+)} 47. Kf1 {[%emt 0:00:00]} f5 {[%emt 0:00:00]} 48. h4 {[%emt 0:00:00]} Ke5 {[%emt 0:00:59]} 49. Rxa6 {[%emt 0:06:37]} Ke4 {[%emt 0:01:10]} 50. Ke1 {[%emt 0:03:48] Weighted Error Value: White=0.85/Black=0.20 (precise)} 0-1